Cogmind - Beta 13 @@@ ROGUE MODE // 2024.05.14 @ 20:48:06 Player: Millea Result: Destroyed by 3H-W4G(R) with Subdweller Laser Performance ------------- Evolutions (0) 0 Regions Visited (3) 600 Robots Destroyed (15) 75 Value Destroyed (462) 462 Prototype IDs (0) 0 Alien Tech Used (0) 0 Bonus (0) 0 TOTAL SCORE: 1137 Bonus ------- None Cogmind --------- Core Integrity 0/250 Matter 266/300 Energy 100/100 System Corruption 0% Temperature Cool (6) Movement Rolling (150) Ox4 Location -10/Subcaves Parts ------- > --- POWER (1) -------- (None) > --- PROPULSION (2) --- Subdweller Monowheel > --- UTILITY (2) ------ Huge Storage Unit Targeting Computer > --- WEAPON (2) ------- Small Laser Subdweller Machine Gun > --- INVENTORY (25) --- Ion Engine Aluminum Leg Aluminum Leg Disposable Heat Sink Disposable Heat Sink Disposable Heat Sink Humpback Subdweller Optics Seismic Detector Makeshift Hacking Suite Thief Drone Bay Cobbler Unit Small Laser Grenade Launcher Subdweller Shrapnel Launcher Flamer Flamer Enhanced Flamer Ripper Scrap Shield Fragment (28) Peak State ------------ > --- POWER ------------ Ion Engine > --- PROPULSION ------- Light Treads Aluminum Leg > --- UTILITY ---------- Huge Storage Unit Targeting Computer > --- WEAPON ----------- Subdweller Machine Gun Ripper > --- INVENTORY -------- Ion Engine Aluminum Leg Aluminum Leg Disposable Heat Sink Disposable Heat Sink Disposable Heat Sink Humpback Subdweller Optics Seismic Detector Makeshift Hacking Suite Thief Drone Bay Cobbler Unit Small Laser Small Laser Subdweller Machine Gun Grenade Launcher Subdweller Shrapnel Launcher Flamer Flamer Enhanced Flamer Scrap Shield Fragment [Rating: 15] Favorites ----------- Power Ion Engine Engine Ion Engine Propulsion Light Treads Treads Light Treads Leg Aluminum Leg Wheel Compact Wheel Utility Huge Storage Unit Device Seismic Detector Storage Huge Storage Unit Processor Targeting Computer Weapon Medium Laser Energy Gun Medium Laser Ballistic Gun Subdweller Machine Gun Slashing Weapon Ripper Build | -11 -10 -10 -10 ------- Run | Yrd Mat Min Sub Slots Evolved . | . . . . Power . | . . . . Propulsion . | . . . . Utility . | . . . . Weapon . | . . . . Parts Attached 18 | 7 2 . 9 Power 1 | 1 . . . Engine 1 | 1 . . . Core . | . . . . Reactor . | . . . . Propulsion 6 | 2 . . 4 Treads 2 | 2 . . . Leg 1 | . . . 1 Wheel 3 | . . . 3 Hover . | . . . . Flight . | . . . . Utility 4 | 2 2 . . Device 1 | 1 . . . Storage 2 | 1 1 . . Processor 1 | . 1 . . Hackware . | . . . . Protection . | . . . . Artifact . | . . . . Weapon 7 | 2 . . 5 Energy Gun 4 | 2 . . 2 Energy Cannon . | . . . . Ballistic Gun 2 | . . . 2 Ballistic Cannon . | . . . . Launcher . | . . . . Special Weapon . | . . . . Impact Weapon . | . . . . Slashing Weapon 1 | . . . 1 Piercing Weapon . | . . . . Special Melee Weapon . | . . . . Unidentified Prototypes . | . . . . Parts Lost 7 | . . . 7 Power 1 | . . . 1 Propulsion 3 | . . . 3 Utility . | . . . . Weapon 3 | . . . 3 Highest Loss Streak 2 | . . . 2 To Critical Strikes 1 | . . . 1 Average Slot Usage (%) 99 | . 100 100 98 Engine 13 | . 14 14 13 Treads 20 | . 28 28 16 Wheel 6 | . . . 11 Storage 14 | . 14 14 14 Processor 13 | . 6 14 14 Energy Gun 26 | . 28 28 24 Ballistic Gun 1 | . . . 1 Naked Turns . | . . . . Heaviest Build 93 | 15 90 89 93 Greatest Support 40 | 40 40 40 40 Greatest Overweight (x) 5 | . 2 2 5 Average Overweight (x) 3 | . 1 2 4 Largest Inventory Capacity 25 | 8 25 25 25 Average Capacity 24 | 7 24 25 25 Most Carried 25 | 6 8 10 25 Average Carried 12 | 3 7 8 16 Final Capacity 25 | 8 25 25 25 Final Carried 22 | 6 8 10 22 Class Distribution -------------------- 100% | Mutant Dominant Class ---------------- Mutant | -10/Materials Mutant | -10/Mines Mutant | -10/Subcaves Resources | -11 -10 -10 -10 ----------- Run | Yrd Mat Min Sub Matter Collected 404 | 256 24 10 114 Remotely . | . . . . Salvage Created 678 | 45 55 106 472 Parts 49 | 3 10 2 34 Haulers Intercepted . | . . . . Recyclers Shooed . | . . . . Parts Field Recycled . | . . . . Retrieved Matter . | . . . . Parts Self-Destructed 10 | . . . 10 Prevented . | . . . . Kills | -11 -10 -10 -10 ------- Run | Yrd Mat Min Sub Combat Hostiles Destroyed 10 | . . 2 8 Guns 10 | . . 2 8 Classes Destroyed 6 | 1 1 1 3 Tunneler 2 | 2 . . . Watcher 3 | . 3 . . Grunt 3 | . . 2 1 Sentry 1 | . . . 1 Cobbler 1 | . . . 1 Subdweller 6 | . . . 6 Best Kill Streak 3 | 2 3 1 2 Combat Bots Only 2 | . . 1 2 Max Kills in Single Turn 1 | 1 1 1 1 Gunslinging . | . . . . Exploded . | . . . . Melee . | . . . . Uniques/NPCs Destroyed . | . . . . Combat | -11 -10 -10 -10 -------- Run | Yrd Mat Min Sub Hostile Shots Fired 83 | . . 6 77 Missed 28 | . . 3 25 Damage Taken 1047 | . . 46 1001 Core 266 | . . . 266 Absorbed by Shields . | . . . . Core Remaining (%) 100 | 100 . . . Volleys Fired 86 | 2 4 7 73 Largest 2 | 2 2 2 2 Hottest 100 | 100 100 100 100 Shots Fired 166 | 4 8 14 140 Gun 166 | 4 8 14 140 Cannon . | . . . . Launcher . | . . . . Special . | . . . . Kinetic 34 | . . . 34 Thermal 132 | 4 8 14 106 Explosive . | . . . . Electromagnetic . | . . . . Robot Hit Streak 14 | 2 2 9 14 Robot Miss Streak 3 | . 2 2 3 Penetration Max . | . . . . Secondary Targets . | . . . . Shots Hit Robots 110 | 2 3 10 95 Core Hits 35 | 2 3 5 25 Critical Kills . | . . . . Critical Parts Destroyed . | . . . . Critical Strikes 6 | 1 . 2 3 Burn 6 | 1 . 2 3 Melee Attacks 3 | . . . 3 Impact . | . . . . Slashing 3 | . . . 3 Piercing . | . . . . Sneak Attacks . | . . . . Combat Hostiles . | . . . . Follow-up Attacks . | . . . . Damage Inflicted 1495 | 25 38 127 1305 Guns 1468 | 25 38 127 1278 Cannons . | . . . . Explosions . | . . . . Melee 27 | . . . 27 Ramming . | . . . . Kinetic 431 | . . . 431 Thermal 1037 | 25 38 127 847 Explosive . | . . . . Electromagnetic . | . . . . Impact . | . . . . Slashing 27 | . . . 27 Piercing . | . . . . Highest Corruption . | . . . . Average Corruption . | . . . . Corruption Purged . | . . . . Corruption Blocked . | . . . . Overload Shots . | . . . . Overflow Damage . | . . . . Projectiles . | . . . . Explosions . | . . . . Melee . | . . . . Knockbacks . | . . . . Impact . | . . . . Kinetic . | . . . . Secondary . | . . . . Self-Inflicted Damage . | . . . . Shots . | . . . . Rammed . | . . . . Targets Rammed . | . . . . Kicked . | . . . . Crushed . | . . . . Highest Temperature 261 | 78 78 261 20 Average Temperature 73 | 39 29 123 6 Received Heat Transfer 216 | . . 27 189 Siege Activations . | . . . . Robots Corrupted . | . . . . Combat Hostiles . | . . . . Parts Fried . | . . . . Impact Corruptions . | . . . . Robots Melted . | . . . . Combat Hostiles . | . . . . Parts Melted 7 | 1 2 1 3 Heat Transferred 3432 | 148 111 518 2655 Parts Sabotaged . | . . . . Parts Stolen . | . . . . Parts Stripped . | . . . . Power Chain Reactions . | . . . . Alert | -11 -10 -10 -10 ------- Run | Yrd Mat Min Sub Peak Influence 54 | 10 54 50 . Initial 21 | . 6 21 . Average 13 | 2 28 11 . Maximum Alert Level . | . . . . Low Security (%) 100 | 100 100 100 . Level 1 . | . . . . Level 2 . | . . . . Level 3 . | . . . . Level 4 . | . . . . Level 5 . | . . . . High Security . | . . . . Max Security . | . . . . Squads Dispatched 1 | . 1 . . Investigation . | . . . . Extermination . | . . . . Reinforcement 1 | . 1 . . Assault . | . . . . Garrison . | . . . . Intercept . | . . . . Searches Triggered . | . . . . Construction Impeded . | . . . . Haulers Reinforced . | . . . . Active Scanning Responses . | . . . . Cargo Convoy Interrupts . | . . . . Stealth | -11 -10 -10 -10 --------- Run | Yrd Mat Min Sub Distress Signals . | . . . . Communications Jammed . | . . . . Distress Signals . | . . . . Times Spotted 15 | . 3 2 10 Peak Tracking Total 2 | . 2 2 2 Tactical Retreats . | . . . . Traps | -11 -10 -10 -10 ------- Run | Yrd Mat Min Sub Traps Triggered . | . . . . Indirectly . | . . . . Trap Hack Attempts . | . . . . Triggered . | . . . . Disarmed . | . . . . Reprogrammed . | . . . . Reused . | . . . . Traps Extracted . | . . . . Installed . | . . . . Triggered 3 | . . . 3 Machines | -11 -10 -10 -10 ---------- Run | Yrd Mat Min Sub Machines Disabled . | . . . . Max in Single Turn . | . . . . Machines Repaired . | . . . . Machines Dismantled . | . . . . Machines Sabotaged . | . . . . Overloaded Fab Kills . | . . . . Hacking | -11 -10 -10 -10 --------- Run | Yrd Mat Min Sub Machines Accessed 3 | . 1 1 1 Terminals 1 | . 1 . . Fabricators . | . . . . Repair Stations . | . . . . Recycling Units . | . . . . Scanalyzers . | . . . . Garrison Access . | . . . . Total Hacks 6 | . 3 1 2 Successful 5 | . 2 1 2 Failed 1 | . 1 . . Catastrophic 1 | . 1 . . Database Lockouts . | . . . . Manual . | . . . . Terminals 3 | . 3 . . Fabricators . | . . . . Repair Stations . | . . . . Recycling Units . | . . . . Scanalyzers . | . . . . Garrison Access . | . . . . Terminal Hacks 5 | . 2 1 2 Record 2 | . . . 2 Open Door 1 | . . 1 . Branch Access Points 1 | . 1 . . Transport Status 1 | . 1 . . Fabricator Hacks . | . . . . Repair Station Hacks . | . . . . Recycling Unit Hacks . | . . . . Scanalyzer . | . . . . Garrison Access Hacks . | . . . . Unauthorized Hacks . | . . . . Terminals . | . . . . Fabricators . | . . . . Repair Stations . | . . . . Recycling Units . | . . . . Scanalyzers . | . . . . Garrison Access . | . . . . Data Cores Recovered . | . . . . Used . | . . . . Hacking Detections 1 | . 1 . . Full Trace Events . | . . . . Feedback Events . | . . . . Feedback Blocked . | . . . . Robot Schematics Acquired . | . . . . Robots Built . | . . . . Authchips . | . . . . Time . | . . . . Total Robot Build Rating . | . . . . Part Schematics Acquired . | . . . . Parts Built . | . . . . Authchips . | . . . . Time . | . . . . Total Part Build Rating . | . . . . Parts Repaired . | . . . . Time . | . . . . Parts Recycled . | . . . . Recycled Matter . | . . . . Retrieved Matter . | . . . . Retrieved Components . | . . . . Parts Scanalyzed . | . . . . Part Schematics Acquired . | . . . . Parts Damaged . | . . . . Bothacking | -11 -10 -10 -10 ------------ Run | Yrd Mat Min Sub Used RIF Installer . | . . . . Robots Hacked . | . . . . Non-combat . | . . . . Combat . | . . . . Robot Hacks Applied . | . . . . Relay Couplers Released . | . . . . Fabnet Peak Effective % . | . . . . Robots Rewired . | . . . . Allies Hacked . | . . . . Hacks Repelled . | . . . . Allies | -11 -10 -10 -10 -------- Run | Yrd Mat Min Sub Total Allies . | . . . . Largest Group . | . . . . Highest-Rated Group . | . . . . Highest-Rated Ally . | . . . . Total Orders . | . . . . Ally Attacks . | . . . . Total Damage . | . . . . Kills . | . . . . Allies Corrupted . | . . . . Allies Melted . | . . . . Intel | -11 -10 -10 -10 ------- Run | Yrd Mat Min Sub Robot Analysis Total . | . . . . Derelict Logs Recovered 2 | . . 1 1 Drone Launches . | . . . . Drone Recoveries . | . . . . Exploration | -11 -10 -10 -10 ------------- Run | Yrd Mat Min Sub Turns Passed 4859 | 94 308 1665 2792 Spaces Moved 1526 | 47 96 442 941 Core 2 | 2 . . . Treads 728 | 45 96 442 145 Legs . | . . . . Wheels 796 | . . . 796 Hover . | . . . . Flight . | . . . . Fastest Speed 50 | 50 160 320 150 Average Speed 237 | 155 303 320 195 Slowest Speed 480 | 160 320 320 480 Overloaded Moves . | . . . . Propulsion Burnouts . | . . . . Robots Hopped . | . . . . Cave-ins Triggered . | . . . . Exploration Rate (%) 37 | 4 21 78 48 Regions Visited 3 Branch Regions 2 Pre-discovered Areas 1 | . . 1 . Known Exits Taken 1 | . 1 . . Unknown Exits Taken 2 | 1 . 1 . Scrap Searched 9 | . . . 9 Spaces Dug . | . . . . Terrain Destroyed . | . . . . Melee . | . . . . Projectile . | . . . . AOE . | . . . . Terrain Rammed . | . . . . Walls Destroyed . | . . . . Machines Disabled . | . . . . Actions | -11 -10 -10 -10 --------- Run | Yrd Mat Min Sub Total 2593 | 61 106 681 1745 Wait 930 | . 2 229 699 Move 1523 | 46 95 441 941 Hop . | . . . . Pick Up 28 | 6 2 3 17 Fast Attach 8 | 7 . . 1 Attach 5 | . . . 5 Detach . | . . . . Swap 5 | . 2 . 3 Drop 5 | . 1 1 3 Fire 86 | 2 4 7 73 Melee 3 | . . . 3 Ram . | . . . . Kick . | . . . . Crush . | . . . . Escape Stasis . | . . . . Rewire . | . . . . Trap . | . . . . Miscellaneous . | . . . . Route ------- -11/Scrapyard -10/Materials -10/Mines (discovered 3 exits: [*Mat x2] / *Sub) -10/Subcaves (discovered 1 exit: [*Mat]) History --------- Turn | Location | Event 43 | -11/Scrapyard | Discovered new exit (range 16) 95 | -11/Scrapyard | Entered Materials 272 | -10/Materials | Identified exit to Mines 307 | -10/Materials | Build established: Mutant 403 | -10/Materials | Entered Mines 404 | -10/Mines | Learned location of Storage (-7) 1078 | -10/Mines | Discovered new exit (range 7) 1196 | -10/Mines | Learned 2 Materials zone layouts 1454 | -10/Mines | A weapon hastily lodged in a ceiling crevice suddenly fell to the ground 1500 | -10/Mines | Discovered new exit (range 8) 1673 | -10/Mines | Found the Drone Emporium 1685 | -10/Mines | Found Prototype Device 2042 | -10/Mines | Discovered new exit (range 5) 2068 | -10/Mines | Entered Subcaves 3603 | -10/Subcaves | Visited Clippyterm 3881 | -10/Subcaves | Shifting Twisted Machinery released Flamer 3882 | -10/Subcaves | Shifting Twisted Machinery released Flamer 3908 | -10/Subcaves | Learned Materials terminal intel 3949 | -10/Subcaves | Discovered new exit (range 15) 4644 | -10/Subcaves | Disturbed a concealed Subdweller 4811 | -10/Subcaves | Core integrity fell below 50% 4831 | -10/Subcaves | Core integrity fell below 20% 4860 | -10/Subcaves | Destroyed by 3H-W4G(R) with Subdweller Laser Last Messages --------------- 04651_ Critical hit (Destroy). 04651_ Med. Laser destroyed. 04652_ Acquired 10 matter. 04659_ TE-CEB(R) destroyed. 04667_ Acquired 12 matter. 04677_ Dropped Aluminum Leg. 04677_ Acquired Sub. Monowheel. 04730_ Acquired 10 matter. 04768_ Lgt. Treads destroyed. 04798_ Ion Engine destroyed. 04814_ Sub. Machine Gun shoots sparks and powers down. 04821_ Destroyed Sub. Monowheel. 04823_ 04-N41(R) destroyed. 04827_ Acquired 22 matter. 04831_ 0N-3V8(R): "ECOKILL!" 04832_ Broken Sub. Machine Gun destroyed. 04837_ 0N-3V8(R) destroyed. 04859_ 3H-W4G(R) emerges from the Twisted Machinery. Map ----- +----------------------------------------------------+ | ?????????????????????????????????????????????????? | | ?????????????????????????????????????????????????? | | ?????????????????????????????????????????????????? | | ?????????????????????????????????????????????????? | | ?????????????????????????????????????????????????? | | ?????????????????????????????????????????????????? | | ?????????????????????????????????????????????????? | | ?????????????????????????????????????????????????? | | ?????????????????????????????????????????????????? | | ?????????????????????????????????????????????????? | | ?????????????????????????#????????? ?????????????? | | ????????????????????????? #??????? #?????????????? | | ????????????????????????? ?????? #?????????????? | | ????????????????????????? #???? ??????????????? | | ????????????????????????? #???? #??????????????? | | ?????????????????????????# ##?? #??????????????? | | ????????????????????????? ### #???????????????? | | ????????????? ##?????????# # #????##?????????? | | ????????????R R ???????## ### ????????? | | ????????????? ?????## ????????? | | ????????????""" ???## %! ?????????? | | ??????????? ### & ??????????????? | | ??????????? % #???????????????????? | | ??????????? & #???????????????????? | | ??????????? ## ### #???????????????????? | | ??????????????????????## @ ##???????????????????? | | ???????????????????????## ##???????????????????? | | ???????????????##??????## #???????????????????? | | ??????????????## #??#### ###???????????????????? | | ???????###????# #### #?????????????????????? | | ???????# ##????# ## ##????????????????????? | | ???????# ###### ##???????????????????? | | ???????# ## ## * ##??????????????????? | | ???????# #?# ### ##?????????????????? | | ????####% #??# #?## #?????????????????? | | ## * ##?# #??#####?????????????????? | | ### #????????????????????????? | | #????????????????????????? | | #### #????????????????????????? | | # ????#### ##????????????????????????? | | #????????## #?????????????????????????? | | ??????????### #?????????????????????????? | | ????????????# #?????????????????????????? | | ????????????# ##?????????????????????????? | | ???????????# ### ###???????????????????????? | | ????????? #?# ##??????????????????????? | | ???????# #?# #????????######????????? | | ??????# ##?# ## ##????????#$$ !##???????? | | ??????# #???# ### ####??????##"[&&#???????? | | ??????##### ????## #?# # ############%#???????? | +----------------------------------------------------+ Best States ------------- Heat Dissipation 25 Energy Generation 10 Energy Capacity 250 Matter Stores 300 Matter Capacity 300 Sight Range 16 Terrain Scan Density 10 Evasion (%) 40 Targeting Accuracy 5 Recoil Reduction 2 Item Schematics ----------------- None Robot Schematics ------------------ None Fabricated ------------ Nothing Alien Tech Used ----------------- None Achievements -------------- None Challenges ------------ None Game ------ Seed AssembledEnergyWand Manual? 0 Play Time 00:12:11 Cumulative 355.0 hours Start 2024.05.14 @ 20:35:40 End 2024.05.14 @ 20:48:06 Sessions 1 Manual Loads 0 Difficulty Rogue Special Mode None Game No. 261 Rogue 261 Adventurer 0 Explorer 0 Win Type - Total 14 Types 9/0/4/1/0/0/0/0/0 Lore% 83 Gallery% 88 Achievement% 76 Wizard Run 0 Options --------- Layout 2 ASCII 1 Keyboard 0 Movement Mouse Keybinds 0 Fullscreen 2 Font 24/Smallcaps Map View 50x44 Zoom Use 0% Tactical HUD 1 Map Filters NONE Filters NONE Steam 1 RUN: 4c10b810-d526-4111-b8ce-61c4a9a01adb